bitfinex/quotes_ETHUSD_20251024
["timestamp","ask_amount","ask_price","bid_price","bid_amount"]
[1761277926820,4.81153444,3884.5,3884.4,0.4562]
[1761277927159,5.50330014,3884.5,3884.4,0.4562]
[1761277930346,4.81153444,3884.5,3884.4,0.4562]
[1761277933572,1.37467245,3884.5,3884.4,0.4562]
[1761277933772,0.55320055,3884.5,3884.4,0.4562]
[1761277933972,0.55420055,3884.6,3884.4,3.48678236]
[1761277934145,0.001,3884.6,3884.4,3.48678236]
[1761277934345,0.001,3884.6,3884.5,0.4542]
[1761277934742,0.001,3884.6,3884.5,1.00840055]
[1761277935872,0.001,3884.6,3884.5,0.4542]
[1761277936067,0.001,3884.6,3884.5,0.583]
[1761277947099,0.001,3884.6,3884.5,3.15733389]
[1761277947703,0.001,3884.6,3884.5,0.583]
[1761277950174,0.001,3884.6,3884.5,3.15733389]
[1761277950374,0.001,3884.6,3884.5,3.15933389]
[1761277951079,0.001,3884.6,3884.5,0.585]
[1761277953286,0.001,3884.6,3884.5,3.15933389]
[1761277954295,0.001,3884.6,3884.5,6.53013389]
[1761277955089,0.001,3884.6,3884.5,3.3728]
[1761277955295,0.001,3884.6,3884.5,0.1308]
[1761277955491,2.93214965,3884.6,3884.5,0.002]
[1761277955714,3.06094965,3884.6,3884.5,0.002]
[1761277955899,3.50854965,3884.6,3884.5,0.002]
[1761277956512,0.93428203,3884.6,3884.5,0.002]
[1761277957327,3.50854965,3884.6,3884.5,0.002]
[1761277957984,0.001,3884.6,3884.5,0.4328]
[1761277958182,0.001,3884.6,3884.5,0.002]
[1761277958991,0.001,3884.6,3884.5,0.4328]
[1761277959296,0.001,3884.6,3884.5,0.002]
[1761277960319,0.001,3884.6,3884.5,2.57633389]
[1761277960694,0.001,3884.6,3884.5,2.70513389]
[1761277960943,0.001,3884.6,3884.5,0.1308]
[1761277962004,0.001,3884.6,3884.5,2.70513389]
[1761277962800,3.56782028,3884.6,3884.5,0.002]
[1761277963094,0.68455672,3884.6,3884.5,0.002]
[1761277963325,0.001,3884.6,3884.5,0.002]
[1761277971339,0.55589206,3884.6,3884.5,0.002]
[1761277972920,0.68469206,3884.6,3884.5,0.002]
[1761277980054,0.55589206,3884.6,3884.5,0.002]
[1761277980231,0.55589206,3884.6,3884.5,0.45]
[1761277980432,0.55589206,3884.6,3884.5,0.77551784]
[1761277980634,0.55589206,3884.6,3884.5,0.002]
[1761277981424,0.55589206,3884.6,3884.5,2.57633389]
[1761277981624,0.55589206,3884.6,3884.5,3.02433389]
[1761277982052,0.55589206,3884.6,3884.5,3.15313389]
[1761277982551,0.55589206,3884.6,3884.5,3.92657595]
[1761277984327,0.55589206,3884.6,3884.5,7.16757595]
[1761277985855,0.55589206,3884.6,3884.5,6.39413389]
[1761277987625,0.001,3885.4,3885.3,2.57380382]
[1761277987896,0.001,3885.6,3885.5,3.08055134]
[1761277988032,0.001,3886.5,3886.3,2.57314154]
[1761277988230,0.001,3886.5,3886.3,11.45504182]
[1761277988547,0.001,3886.5,3886.3,7.82934154]
[1761277989165,0.001,3886.5,3886.3,7.93241028]
[1761277992067,0.001,3886.5,3886.3,8.43929028]
[1761277992873,1e-08,3887.0,3886.5,2.57296034]
[1761277993174,1e-08,3887.0,3886.9,10.2878257]
[1761277993377,1e-08,3887.0,3886.9,13.5448257]
[1761277993675,1e-08,3887.0,3886.9,13.9928257]
[1761277994366,1e-08,3887.0,3886.9,14.8811155]
[1761277995673,1e-08,3887.0,3886.9,14.09585674]
[1761277997075,0.75041211,3891.0,3887.5,0.1106]
[1761277997389,0.6968,3890.5,3890.2,2.57056149]
[1761277997674,0.6968,3890.5,3890.4,2.57042977]
[1761277997970,0.2362,3890.5,3890.4,2.57042977]
[1761277998272,0.1288,3890.8,3890.4,2.57040114]
[1761277998468,0.5894,3890.8,3890.4,2.57040114]
[1761277998874,0.4606,3890.7,3890.4,2.57040114]
[1761277999843,0.4606,3890.7,3890.3,2.6992823]
[1761278000874,9.61257904,3892.0,3890.7,2.57023157]
[1761278000875,0.75041211,3891.4,3890.7,2.57023157]
[1761278001073,0.37043268,3892.0,3891.3,0.1106]
[1761278001074,0.2362,3892.0,3891.3,0.1106]
[1761278001299,0.2362,3892.0,3891.4,3.27]
[1761278001300,0.4606,3891.9,3891.4,3.27]
[1761278001456,0.2362,3890.9,3890.8,0.75041211]
[1761278001645,0.6968,3890.9,3890.8,0.75041211]
[1761278002345,0.2362,3890.9,3890.8,3.32057762]
[1761278004860,0.4616,3891.5,3891.2,2.56984937]
[1761278005289,0.001,3891.5,3891.4,3.18724923]
[1761278005749,0.001,3891.5,3891.4,3.63524923]
[1761278007481,0.001,3891.5,3891.4,4.09584923]
[1761278009571,0.001,3891.5,3891.4,0.4606]
[1761278009750,0.001,3891.5,3891.4,3.03036923]
[1761278010146,0.001,3891.5,3891.4,2.56976923]
[1761278010862,0.001,3891.5,3891.4,2.69856923]
[1761278015678,0.47,3891.5,3891.4,5.96256923]
[1761278016085,0.47,3891.5,3890.5,0.4322]
[1761278016086,0.47,3891.5,3890.3,1.6638]
[1761278016292,0.47,3891.5,3891.0,2.56997649]
[1761278016474,0.47,3891.5,3891.0,3.264]
[1761278016889,0.47,3891.5,3891.0,5.83402573]
[1761278017076,0.47,3891.5,3891.0,3.264]
[1761278017277,0.47,3891.5,3891.0,5.83402277]
[1761278018065,0.47,3891.5,3891.1,2.56996609]
[1761278019699,0.47,3891.5,3891.2,2.56989668]
[1761278020089,0.47,3891.5,3891.0,3.264]
[1761278020090,0.47,3891.5,3891.1,2.5699555]
[1761278020290,0.47,3891.5,3891.2,2.56989588]
[1761278020291,0.001,3891.5,3891.2,2.56989588]
[1761278020599,0.47,3891.5,3891.1,2.56994557]
[1761278021871,0.47,3891.5,3891.2,2.5698917]
[1761278022498,0.001,3891.5,3891.2,2.5698917]
[1761278022702,0.001,3891.5,3891.1,2.56994958]
[1761278022870,0.47,3891.5,3891.1,2.56994958]
[1761278023075,0.47,3891.5,3891.2,2.56989736]
[1761278024388,0.47,3891.5,3891.0,3.264]
[1761278024792,0.47,3891.5,3891.1,2.56996584]
[1761278026203,0.47,3891.5,3891.2,0.1288]
[1761278026972,0.47,3891.5,3891.2,2.69869188]
[1761278027193,0.001,3891.5,3891.2,2.69869188]
[1761278027593,0.001,3891.5,3891.3,2.56981795]
[1761278030147,0.001,3891.5,3891.4,2.56976923]
[1761278030308,0.001,3891.5,3891.4,2.69856923]
[1761278034649,0.001,3891.5,3891.4,2.56976923]
[1761278035632,0.001,3891.5,3891.3,5.82981471]
[1761278035807,0.001,3891.5,3891.3,5.8298229]
[1761278036631,0.001,3891.5,3891.4,2.56976923]
[1761278036809,0.001,3891.5,3891.3,5.82981691]
[1761278037209,0.47,3891.5,3891.3,5.82981691]
[1761278040300,0.47,3891.5,3891.1,2.56995138]
[1761278040506,0.47,3891.5,3891.2,3.256]
[1761278040922,3.65384406,3891.5,3891.2,3.256]
[1761278041130,3.65384406,3891.5,3890.8,6.44014742]
[1761278041335,3.00818059,3891.4,3890.9,3.256]
[1761278041832,0.4384,3891.3,3890.9,3.256]
[1761278042026,0.4384,3891.3,3890.9,5.82609804]
[1761278042336,0.001,3891.5,3891.1,2.5699451]
[1761278042724,0.4394,3891.5,3891.2,3.256]
[1761278044625,0.4394,3891.5,3891.2,3.3848]
[1761278045323,1.01013639,3891.5,3891.2,3.3848]
[1761278045940,0.4384,3891.4,3891.2,3.3848]
[1761278047426,0.57173639,3891.5,3891.2,3.3848]
[1761278047619,0.4384,3891.4,3891.2,3.3848]
[1761278048220,0.001,3891.5,3891.2,3.3848]
[1761278048440,0.001,3891.5,3891.2,5.95464721]
[1761278048645,0.001,3891.5,3891.4,2.69856923]
[1761278055919,0.001,3891.5,3891.4,0.1288]
[1761278056135,0.001,3891.5,3891.4,3.253]
[1761278056136,0.4394,3891.5,3891.4,3.253]
[1761278058318,0.001,3891.5,3891.4,3.253]
[1761278059256,0.4394,3891.5,3891.4,3.253]
[1761278059434,0.001,3891.5,3891.4,3.253]
[1761278060420,0.4394,3891.5,3891.4,3.253]
[1761278061660,0.001,3891.5,3891.4,5.82276923]
[1761278061855,0.001,3891.5,3891.4,3.253]
[1761278062748,0.4394,3891.5,3891.4,3.253]
[1761278063250,0.001,3891.5,3891.4,3.253]
[1761278066168,0.4394,3891.5,3891.4,3.253]
[1761278069344,0.001,3891.5,3891.4,3.253]
[1761278070659,0.4693,3891.5,3891.4,3.253]
[1761278072583,0.4693,3891.5,3891.4,5.82276923]
[1761278072951,0.4693,3891.5,3891.4,3.253]
[1761278073582,0.4693,3891.5,3891.4,5.82276923]
[1761278074189,0.001,3891.5,3891.4,5.82276923]
[1761278076788,0.4693,3891.5,3891.4,5.82276923]
[1761278080194,0.001,3891.5,3891.4,5.82276923]
[1761278082287,0.001,3891.5,3891.4,3.253]
[1761278083267,0.4693,3891.5,3891.4,3.253]
[1761278083685,0.4693,3891.5,3891.4,5.82276923]
[1761278088207,0.4673,3891.7,3891.4,5.82276923]
[1761278090205,0.001,3891.5,3891.4,5.82276923]
[1761278095708,0.001,3891.5,3891.4,6.28516923]
[1761278096574,0.001,3891.5,3891.4,5.82276923]
[1761278098810,0.001,3891.5,3891.4,2.56976923]
[1761278098996,0.001,3891.5,3891.4,5.81176923]
[1761278104825,0.001,3891.5,3891.4,6.27836923]
[1761278104995,0.001,3891.5,3891.4,5.81176923]
[1761278106309,0.001,3891.5,3891.4,6.27836923]
[1761278106835,0.001,3891.5,3891.4,6.28036923]
[1761278107932,0.001,3891.5,3891.4,5.81376923]
[1761278114336,0.001,3891.5,3891.4,6.28036923]
[1761278114641,0.001,3891.5,3891.4,5.81376923]
[1761278115457,0.001,3891.5,3891.4,6.28036923]
[1761278115739,0.001,3891.5,3891.4,5.81376923]
[1761278115960,0.001,3891.5,3891.4,8.34244923]
[1761278116109,0.001,3891.5,3891.4,8.44536919]
[1761278119047,0.001,3891.9,3891.4,8.44536919]
[1761278119048,0.001,3891.9,3891.8,4.63158511]
[1761278119251,0.001,3891.9,3891.8,11.92029425]
[1761278119538,0.001,3891.9,3891.8,12.3611992]
[1761278119739,0.001,3891.9,3891.8,11.54301497]
[1761278120334,0.001,3891.9,3891.8,12.46256648]
[1761278120531,3.26201619,3894.4,3892.3,0.50688]
[1761278120747,0.4483,3893.9,3892.4,11.43872461]
[1761278121256,0.4483,3893.9,3892.4,11.88702461]
[1761278122025,0.4483,3893.9,3892.4,5.07948903]
[1761278122231,0.232,3892.8,3892.4,1.5552]
[1761278122429,0.232,3892.8,3892.4,5.80910903]
[1761278122430,0.4493,3892.5,3892.4,5.80910903]
[1761278122921,0.001,3892.5,3892.4,2.56910903]
[1761278123127,0.4493,3892.5,3892.4,5.81010903]
[1761278123326,0.001,3892.5,3892.4,5.81010903]
[1761278124728,0.4493,3892.5,3892.4,5.81010903]
[1761278125031,0.4493,3892.5,3892.4,2.56910903]
[1761278125231,0.001,3892.5,3892.4,12.72972461]
[1761278125454,0.001,3892.5,3892.4,9.62878903]
[1761278125662,0.001,3892.5,3892.4,13.50132855]
[1761278126331,0.001,3892.5,3892.4,17.71746122]
[1761278127177,0.4483,3894.5,3893.3,0.50688]
[1761278127331,0.4483,3894.5,3894.4,2.56778964]
[1761278127526,0.4483,3894.5,3894.4,5.81878964]
[1761278127733,0.4483,3894.5,3894.4,3.251]
[1761278128437,0.4483,3894.5,3893.5,3.10093558]
[1761278128639,0.4483,3894.5,3893.7,2.56825127]
[1761278128845,0.74988415,3894.5,3894.3,0.128]
[1761278129050,0.74988415,3894.5,3894.3,3.379]
[1761278129257,0.4611,3894.4,3894.3,3.379]
[1761278129636,0.4611,3894.4,3894.3,0.128]
[1761278130255,0.4611,3894.4,3894.1,3.25]
[1761278130441,0.4611,3894.4,3894.1,3.378]
[1761278130766,1.00355235,3895.4,3894.3,0.1086]
[1761278130952,0.232,3895.4,3894.6,3.10093558]
[1761278131154,0.232,3895.4,3894.7,3.254]
[1761278131332,0.232,3895.4,3894.8,2.56752593]
[1761278131537,0.232,3895.4,3894.9,2.56745267]
[1761278131538,0.4611,3895.3,3894.9,2.56745267]
[1761278131733,0.4611,3895.3,3895.0,3.254]
[1761278131948,0.78711181,3895.3,3895.0,3.254]
[1761278132148,0.4611,3895.3,3895.0,3.254]
[1761278132362,0.4611,3895.2,3895.0,3.254]
[1761278135052,0.4611,3895.2,3895.0,5.8213862]
[1761278135664,0.4611,3895.2,3895.0,3.254]
[1761278136380,0.4611,3895.2,3895.0,5.8213788]
[1761278136578,0.232,3895.4,3895.0,5.8213788]
[1761278136801,0.6931,3895.4,3895.1,2.56732312]
[1761278137349,0.232,3895.4,3895.1,2.56732312]
[1761278137579,0.232,3895.4,3895.0,5.82137638]
[1761278137580,0.4611,3895.3,3895.0,5.82137638]
[1761278138978,2.0163,3895.7,3895.1,2.56732301]
[1761278139186,0.4611,3895.6,3895.0,5.82137291]
[1761278139351,0.4611,3895.6,3895.1,2.56731752]
[1761278140678,0.4611,3895.6,3895.0,5.8213721]
[1761278140881,0.128,3895.4,3895.1,2.59300146]
[1761278141063,0.128,3895.4,3895.2,2.56725594]
[1761278141963,0.128,3895.4,3895.1,2.59298082]
[1761278142283,0.5891,3895.4,3895.1,2.59298082]
[1761278142494,0.5891,3895.4,3895.1,0.02567328]
[1761278142704,0.4611,3895.3,3895.0,3.254]
[1761278143001,0.4611,3895.3,3895.0,5.82135497]
[1761278143569,0.4611,3895.3,3895.0,3.254]
[1761278143778,0.4611,3895.3,3895.1,2.56728842]
[1761278144866,0.4611,3895.3,3895.0,5.8213832]
[1761278145271,0.4611,3895.3,3895.1,2.56731821]
[1761278146078,0.4611,3895.3,3895.0,5.82136704]
[1761278147506,0.4611,3895.3,3895.1,2.56732769]
[1761278149519,0.4611,3895.3,3895.0,5.82136704]
[1761278149822,0.4611,3895.3,3895.0,3.254]
[1761278150110,2.5675626,3894.8,3893.2,0.6053]
[1761278150312,3.78243558,3894.7,3894.3,0.128]
[1761278150514,0.6815,3894.7,3894.3,3.378]
[1761278150715,0.4611,3894.6,3894.3,3.378]
[1761278151098,0.4611,3894.6,3894.3,5.94585226]
[1761278151614,0.4611,3894.6,3894.4,2.56777584]
[1761278151777,0.4611,3894.6,3894.3,3.378]
[1761278151982,0.4611,3894.6,3894.3,5.94585466]
[1761278153811,0.4611,3894.6,3894.3,3.378]
[1761278157485,0.4611,3894.6,3894.3,0.128]
[1761278157714,0.4611,3894.6,3894.3,3.378]
[1761278159526,0.4611,3894.6,3893.3,5.85033819]
[1761278159527,3.10093558,3894.4,3893.3,0.68732261]
[1761278159706,0.128,3894.4,3893.8,0.1288]
[1761278159901,0.6693,3894.7,3894.3,0.128]
[1761278160101,0.4489,3894.6,3894.3,0.128]
[1761278161006,0.4489,3894.6,3894.3,2.69581344]
[1761278162027,0.2204,3894.7,3894.3,2.69581344]
[1761278162193,0.2204,3894.7,3894.4,2.56778008]
[1761278162599,0.001,3894.6,3894.4,2.56778008]
[1761278163928,0.001,3894.6,3894.5,5.81572371]
[1761278164228,0.001,3894.6,3894.5,5.94372371]
[1761278164533,0.001,3894.6,3894.5,3.376]
[1761278165033,0.001,3894.6,3894.5,5.94372371]
[1761278165803,0.001,3894.6,3894.5,3.376]
[1761278167337,0.001,3894.6,3894.5,5.94372371]
[1761278168704,0.001,3894.6,3894.5,6.41712371]
[1761278169106,0.001,3894.6,3894.5,3.376]
[1761278169529,0.001,3894.6,3894.5,5.94372371]
[1761278176055,0.001,3894.6,3894.5,6.41712371]
[1761278183370,0.001,3894.6,3894.5,6.92400371]
[1761278186458,0.001,3894.6,3894.5,6.45060371]
[1761278186781,0.001,3894.6,3894.5,6.92400371]
[1761278194389,0.001,3894.6,3894.5,6.88420371]
[1761278198079,0.001,3894.6,3894.5,6.45060371]
[1761278200502,0.001,3894.6,3894.5,3.20260371]
[1761278200698,0.001,3894.6,3894.5,6.44260371]
[1761278206341,0.001,3894.6,3894.5,3.20260371]
[1761278206535,0.001,3894.6,3894.5,6.44260371]
[1761278207427,0.001,3894.6,3894.5,3.20260371]
[1761278207636,0.001,3894.6,3894.5,6.44260371]
[1761278214916,0.001,3894.6,3894.5,3.20260371]
[1761278215157,0.4347,3894.6,3894.5,0.128]
[1761278215485,0.4347,3894.6,3894.5,3.368]
[1761278215785,0.4347,3894.6,3894.5,5.93572371]
[1761278217483,0.4347,3894.6,3894.5,0.128]
[1761278217783,0.4347,3894.6,3894.5,3.368]
[1761278217981,0.4347,3894.6,3894.5,5.93572371]
[1761278218489,0.4347,3894.6,3894.5,3.368]
[1761278219176,0.4347,3894.6,3894.5,5.93572371]
[1761278220491,0.4347,3894.6,3894.5,3.368]
[1761278221686,0.4347,3894.6,3894.5,5.93572371]
[1761278221890,0.4347,3894.6,3894.5,3.368]
[1761278222064,0.4347,3894.6,3894.5,5.93572371]
[1761278230212,0.4347,3894.6,3894.5,3.368]
[1761278230512,0.4347,3894.6,3894.5,0.128]
[1761278230722,0.4347,3894.6,3894.5,3.24]
[1761278232121,0.001,3894.6,3894.5,5.80772371]
[1761278233081,0.4649,3894.6,3894.5,5.80772371]
[1761278236227,0.001,3894.6,3894.5,5.80772371]
[1761278237016,0.4649,3894.6,3894.5,3.24]
[1761278237722,0.4649,3894.6,3894.4,0.128]
[1761278237903,0.7901978,3894.6,3894.5,5.80772371]
[1761278238108,0.001,3894.6,3894.5,5.80772371]
[1761278238310,0.4649,3894.6,3894.5,5.80772371]
[1761278239620,0.4649,3894.6,3894.5,3.24]
[1761278239826,0.4649,3894.6,3894.5,5.80772371]
[1761278240589,0.4649,3894.6,3894.5,2.56772371]
[1761278240785,0.4649,3894.6,3894.5,3.24]
[1761278242492,2.56788334,3894.3,3893.3,0.68732261]
[1761278242745,3.09635745,3894.1,3893.1,0.1361]
[1761278243034,2.56811936,3893.9,3893.3,0.1288]
[1761278243328,0.1288,3893.8,3893.3,0.1288]
[1761278243528,0.8221,3893.8,3893.3,0.1288]
[1761278243729,0.4639,3893.7,3893.3,2.69730496]
[1761278243891,0.4639,3893.7,3893.4,2.5684408]
[1761278244091,0.4639,3893.7,3893.4,2.56844115]
[1761278244329,0.4639,3893.7,3893.6,2.56831723]
[1761278245327,0.4639,3893.7,3893.5,5.93715874]
[1761278245822,0.4639,3893.7,3893.6,2.56831723]
[1761278245995,0.4639,3893.7,3893.5,3.3688]
[1761278246599,0.4639,3893.7,3893.5,5.93713998]
[1761278246791,0.4639,3893.7,3893.5,3.3688]
[1761278247504,0.4639,3893.7,3893.5,5.93717698]
[1761278249022,0.4639,3893.7,3893.6,2.56831723]
[1761278249218,0.4639,3893.7,3893.5,5.93715768]
[1761278249526,0.4639,3893.7,3893.5,5.93716606]
[1761278249922,0.4639,3893.7,3893.6,2.56831723]
[1761278253364,0.4639,3893.7,3893.5,5.93716083]
[1761278253658,0.2263,3893.9,3893.5,3.3688]
[1761278253869,0.128,3894.1,3893.5,3.3688]
[1761278254030,0.4342,3894.2,3893.8,2.56812422]
[1761278254231,0.4342,3894.2,3893.8,2.59380607]
[1761278254580,0.001,3894.6,3894.1,3.09635745]
[1761278254862,0.001,3894.6,3894.2,3.24]
[1761278255062,0.001,3894.6,3894.5,2.56772371]
[1761278255261,0.001,3894.6,3894.5,5.80772371]
[1761278264568,0.001,3894.6,3894.5,5.93572371]
[1761278265959,0.001,3894.6,3894.5,6.38372371]
[1761278267789,0.001,3894.6,3894.5,5.93572371]
[1761278273202,0.001,3894.6,3894.5,6.38372371]
[1761278277627,0.001,3894.6,3894.5,5.93572371]
[1761278280995,0.001,3894.6,3894.5,6.38372371]
[1761278283705,0.001,3894.6,3894.5,6.89060371]
[1761278283907,0.001,3894.6,3894.5,8.44580371]
[1761278284307,0.001,3894.6,3894.5,8.5486353]
[1761278284734,0.001,3894.6,3894.5,9.23830572]
[1761278285408,0.001,3894.6,3894.5,8.5486353]
[1761278288707,0.001,3894.6,3894.5,9.23830572]
[1761278290042,0.001,3894.6,3894.5,8.5486353]
[1761278290629,0.001,3895.0,3894.5,8.5486353]
[1761278290630,0.001,3895.0,3894.9,4.62954001]
[1761278290823,0.001,3895.0,3894.9,15.16212453]
[1761278291033,0.001,3895.0,3894.9,15.71244993]
[1761278291335,0.001,3895.0,3894.9,15.81526857]
[1761278292448,0.001,3895.0,3894.9,15.12492039]
[1761278294736,0.001,3895.0,3894.9,12.47588701]
[1761278297853,0.001,3895.0,3894.9,12.09104017]
[1761278305049,0.001,3895.0,3894.9,15.96104017]
[1761278306247,0.001,3895.0,3894.9,15.51304017]
[1761278307264,0.001,3895.0,3894.9,15.96104017]
[1761278307571,0.001,3895.0,3894.9,16.65138835]
[1761278309870,0.001,3895.0,3894.9,16.20338835]
[1761278310451,0.001,3895.0,3894.9,15.97834017]
[1761278312159,0.001,3895.0,3894.9,15.51304017]
[1761278312362,0.001,3895.0,3894.9,15.97834017]
[1761278313582,0.001,3895.0,3894.9,8.66015621]
[1761278313883,0.001,3895.0,3894.9,7.97035865]
[1761278314055,0.001,3895.0,3894.9,8.66015621]
[1761278314981,0.001,3895.0,3894.9,11.51404017]
[1761278315351,0.4465,3895.0,3894.9,11.51404017]
[1761278315886,0.4465,3895.0,3894.9,4.73235865]
[1761278316054,0.4465,3895.0,3894.9,7.86654001]
[1761278316255,0.001,3895.0,3894.9,7.86654001]
[1761278316885,0.4465,3895.0,3894.9,7.86654001]
[1761278323468,0.4465,3895.0,3894.9,7.99454001]
[1761278324956,0.001,3895.0,3894.9,4.62954001]
[1761278325288,0.4465,3895.0,3894.9,8.31404001]
[1761278329094,0.4465,3895.0,3894.9,12.18404001]
[1761278329410,0.4465,3895.0,3894.9,8.94604001]
[1761278329610,0.4465,3895.0,3894.9,0.4465]
[1761278329900,0.84551815,3895.0,3894.5,2.56766525]
[1761278330190,0.2194,3894.9,3894.6,3.237]
[1761278330396,0.6649,3894.9,3894.6,5.80461986]
[1761278330694,0.6649,3894.9,3894.6,5.80465057]
[1761278330891,0.4455,3894.8,3894.6,5.80465057]
[1761278331695,0.4455,3894.8,3894.7,2.56759185]
[1761278333196,0.4455,3894.8,3894.6,2.56765407]
[1761278334300,0.4455,3894.8,3894.6,2.56965407]
[1761278334897,0.4455,3894.8,3894.7,0.128]
[1761278335510,0.4455,3894.8,3894.7,2.69559185]
[1761278335977,0.4455,3894.8,3894.6,0.002]
[1761278336176,0.32332999,3894.7,3894.6,0.002]
[1761278336585,0.76882999,3894.7,3894.6,0.002]
[1761278337383,0.4455,3894.7,3894.6,0.002]
[1761278341714,3.01309185,3894.7,3894.6,0.002]
[1761278342209,3.78468785,3894.7,3894.6,0.002]
[1761278346080,3.91268785,3894.7,3894.6,0.002]
[1761278347212,1.217096,3894.7,3894.6,0.002]
[1761278347514,0.4455,3894.7,3894.6,0.002]
[1761278348614,0.78163679,3894.7,3894.6,0.002]
[1761278350201,0.4455,3894.7,3894.6,0.002]
[1761278351990,0.4455,3894.7,3894.6,2.56965778]
[1761278353119,0.4465,3894.7,3894.6,2.56965778]
[1761278366931,0.4465,3894.7,3894.6,0.002]
[1761278368488,0.4465,3894.7,3894.6,2.56965778]
[1761278371473,0.001,3894.7,3894.6,2.56965778]
[1761278377458,0.001,3894.7,3894.6,2.69765778]
[1761278377794,0.001,3894.7,3894.6,6.88523778]
[1761278380745,0.001,3894.7,3894.6,9.98192279]
[1761278384981,0.001,3894.7,3894.6,6.44153778]
[1761278388483,0.001,3894.7,3894.6,10.31153778]
[1761278391281,0.001,3894.7,3894.6,10.75523778]
[1761278394781,0.001,3894.7,3894.6,10.31153778]
[1761278394957,0.001,3894.7,3894.6,13.40822279]
[1761278400110,0.001,3894.7,3894.6,9.53822279]
[1761278401685,0.001,3894.7,3894.6,2.69765778]
[1761278401885,0.4405,3894.7,3894.6,0.002]
[1761278402194,0.8169385,3894.7,3894.6,0.002]
[1761278402804,0.4405,3894.7,3894.6,2.56965778]
[1761278403215,0.001,3894.7,3894.6,2.56965778]
[1761278403383,0.4405,3894.7,3894.6,2.56965778]
[1761278403790,0.001,3894.7,3894.6,2.56965778]
[1761278404190,0.4405,3894.7,3894.6,2.56965778]
[1761278408585,0.4405,3894.7,3894.6,0.002]
[1761278408990,0.4405,3894.7,3894.6,2.56965778]
[1761278409193,0.4405,3894.7,3894.6,0.002]
[1761278409909,0.76401003,3894.7,3894.6,0.002]
[1761278410297,0.4405,3894.7,3894.6,0.002]
[1761278412918,0.4405,3894.7,3894.6,2.56965778]
[1761278413319,0.4405,3894.7,3894.6,0.002]
[1761278413515,0.4405,3894.7,3894.6,5.66634279]
[1761278413516,0.001,3894.7,3894.6,5.66634279]
[1761278413719,0.001,3894.7,3894.6,2.56965778]
[1761278423328,0.001,3894.7,3894.6,2.59533435]
[1761278423665,0.001,3894.7,3894.6,2.72333435]
[1761278423962,0.001,3894.7,3894.6,2.69765778]
[1761278425443,0.001,3894.7,3894.6,3.17733435]
[1761278426378,0.001,3894.7,3894.6,2.72333435]
[1761278427588,0.001,3894.7,3894.6,2.69765778]
[1761278427878,0.001,3894.7,3894.6,3.15165778]
[1761278428383,0.001,3894.7,3894.6,2.69765778]
[1761278431594,0.462,3894.7,3894.6,2.69765778]
[1761278431752,0.001,3894.7,3894.6,2.69765778]
[1761278431952,0.462,3894.7,3894.6,2.69765778]
[1761278432147,0.462,3894.7,3894.6,5.93365778]
[1761278433755,0.462,3894.7,3894.6,5.80565778]
[1761278440099,0.462,3894.7,3894.6,2.56965778]
[1761278441971,0.462,3894.7,3894.6,0.002]
[1761278442470,0.78868,3894.7,3894.6,0.002]
[1761278442875,0.462,3894.7,3894.6,0.002]
[1761278464360,0.001,3894.7,3894.6,0.002]
[1761278466856,0.4697,3894.7,3894.6,0.002]
[1761278469160,0.001,3894.7,3894.6,0.002]
[1761278469764,0.4697,3894.7,3894.6,0.002]
[1761278470963,0.001,3894.7,3894.6,2.56965778]
[1761278471262,0.001,3894.7,3894.6,3.15665778]
[1761278471430,0.001,3894.7,3894.6,2.69765778]
[1761278473247,0.001,3894.7,3894.6,0.13]
[1761278473430,0.4697,3894.7,3894.6,0.002]
[1761278474076,0.4697,3894.7,3894.6,2.56965778]
[1761278474262,0.001,3894.7,3894.6,2.56965778]
[1761278476769,0.4697,3894.7,3894.6,0.002]
[1761278490097,3.03729185,3894.7,3894.6,0.002]
[1761278509256,3.72819545,3894.7,3894.6,0.002]
[1761278509458,3.03729185,3894.7,3894.6,0.002]
[1761278509644,3.72819545,3894.7,3894.6,0.002]
[1761278510433,7.6892967,3894.7,3894.6,0.002]
[1761278510639,8.84257279,3894.7,3894.6,0.002]
[1761278510963,10.22804646,3894.7,3894.6,0.002]
[1761278511468,10.33094312,3894.7,3894.6,0.002]
[1761278512855,8.94546945,3894.7,3894.6,0.002]
[1761278513159,10.33077483,3894.7,3894.6,0.002]
[1761278516180,13.03477483,3894.7,3894.6,0.002]
[1761278516477,10.33077483,3894.7,3894.6,0.002]
[1761278521575,8.94546945,3894.7,3894.6,0.002]
[1761278522490,10.33006523,3894.7,3894.6,0.002]
[1761278526302,9.45234945,3894.7,3894.6,0.002]
[1761278533303,12.5491543,3894.7,3894.6,0.002]
[1761278533521,4.12305558,3894.3,3894.2,0.002]
[1761278533820,7.34786043,3894.3,3894.2,0.002]
[1761278534019,7.77976043,3894.3,3894.2,0.002]
[1761278534232,7.91586043,3894.3,3894.2,0.002]
[1761278537521,7.91586043,3894.3,3892.9,0.002]
[1761278537522,2.56871307,3893.0,3892.9,0.002]
[1761278537725,6.35807223,3893.0,3892.9,0.002]
[1761278537891,6.48687223,3893.0,3892.9,0.002]
[1761278538091,5.79431792,3893.0,3892.9,0.002]
[1761278538325,6.48674103,3893.0,3892.9,0.002]
[1761278538629,9.13865913,3893.0,3892.9,0.002]
[1761278538812,9.80154177,3893.0,3892.9,0.002]
[1761278539126,8.87813602,3893.0,3892.9,0.002]